bitfinex-derivatives/quotes_SOLF0:USTF0_20241002
["timestamp","ask_amount","ask_price","bid_price","bid_amount"]
[1727882130934,3.4234,146.06,146.04,3.4238]
[1727882131236,6.5,146.08,146.01,4.0626]
[1727882132137,0.12502,146.09,146.01,4.0626]
[1727882132330,3.4238,146.05,146.02,3.4241]
[1727882132531,0.12502,146.09,146.01,4.0626]
[1727882133133,0.12502,146.09,146.04,3.4238]
[1727882133437,0.12502,146.09,146.01,4.0626]
[1727882133634,3.54782,146.09,146.06,3.4233]
[1727882133938,0.12502,146.09,146.06,3.4233]
[1727882135336,0.12502,146.09,146.07,3.4231]
[1727882137038,0.12502,146.09,146.03,6.5]
[1727882137039,0.12502,146.09,146.08,3.4229]
[1727882137237,0.12502,146.09,146.03,6.5]
[1727882137737,3.54782,146.09,146.07,3.4231]
[1727882137930,0.12502,146.09,146.03,9.93818606]
[1727882138928,0.12502,146.09,146.03,6.5]
[1727882139329,0.12502,146.09,146.03,9.99124448]
[1727882140438,6.5,146.14,146.03,10.11626448]
[1727882140734,9.99809073,146.14,146.03,10.11626448]
[1727882141124,3.4223,146.11,146.08,3.4228]
[1727882141340,9.99809073,146.14,146.03,10.11626448]
[1727882141932,3.4224,146.11,146.08,3.4229]
[1727882142131,9.99809073,146.14,146.08,3.4229]
[1727882142341,9.99809073,146.14,146.03,10.11626448]
[1727882142733,3.4225,146.1,146.06,3.4233]
[1727882142933,9.99809073,146.14,146.03,6.62502]
[1727882143133,9.99809073,146.14,146.03,9.98026063]
[1727882143437,3.4223,146.11,146.08,3.4228]
[1727882143741,9.99809073,146.14,146.03,6.62502]
[1727882144230,9.99809073,146.14,146.07,3.4231]
[1727882144437,9.99809073,146.14,146.03,10.02715596]
[1727882144833,3.4223,146.11,146.08,3.4228]
[1727882145638,0.12502,146.15,146.07,6.5]
[1727882145833,134.89555385,146.22,146.08,17.3843]
[1727882145834,128.05605385,146.22,146.08,17.3843]
[1727882146033,3.4205,146.19,146.16,3.421]
[1727882146245,6.62502,146.21,146.09,0.12502]
[1727882146733,3.4208,146.18,146.12,3.4218]
[1727882147032,6.62502,146.21,146.09,0.12502]
[1727882147239,3.4211,146.16,146.13,3.4216]
[1727882147441,3.4211,146.16,146.09,0.12502]
[1727882148231,3.4211,146.16,146.13,3.4216]
[1727882148429,3.4216,146.14,146.09,0.12502]
[1727882148634,6.5,146.17,146.09,0.12502]
[1727882148932,3.4208,146.18,146.09,0.12502]
[1727882149339,3.4208,146.18,146.14,3.4213]
[1727882149545,3.4205,146.19,146.09,0.12502]
[1727882149836,0.12502,146.21,146.17,3.4208]
[1727882150030,3.4203,146.2,146.12,9.86115447]
[1727882150237,3.4203,146.2,146.12,6.5]
[1727882150635,3.54502,146.21,146.13,3.37894741]
[1727882150834,3.54502,146.21,146.14,2.6215]
[1727882151039,3.54502,146.21,146.14,3.9705]
[1727882151237,3.54502,146.21,146.18,3.4204]
[1727882151444,0.12502,146.21,146.18,3.4204]
[1727882151942,3.54502,146.21,146.14,3.9705]
[1727882152134,0.12502,146.21,146.15,3.4211]
[1727882152449,0.12502,146.21,146.14,10.4705]
[1727882152645,0.12502,146.21,146.14,7.3919]
[1727882152646,3.4209,146.17,146.14,7.3919]
[1727882153642,3.4209,146.17,146.14,3.9705]
[1727882153946,3.4206,146.18,146.15,3.4213]
[1727882154839,0.12502,146.21,146.14,3.9705]
[1727882155439,3.4202,146.2,146.17,3.4208]
[1727882155836,3.4203,146.19,146.17,3.4208]
[1727882156037,0.12502,146.21,146.14,3.9705]
[1727882156336,0.12502,146.21,146.16,3.421]
[1727882156745,0.12502,146.21,146.15,3.4212]
[1727882156937,0.12502,146.21,146.14,3.9705]
[1727882157536,3.4207,146.18,146.14,3.9705]
[1727882158042,3.4207,146.18,146.15,3.4211]
[1727882160245,6.48,146.19,146.09,6.60502]
[1727882160448,6.48,146.19,146.09,7.90802]
[1727882160635,3.4209,146.17,146.14,3.4214]
[1727882161137,3.4207,146.18,146.15,3.4211]
[1727882161338,6.48,146.19,146.11,3.45183002]
[1727882161545,3.4202,146.2,146.17,3.4207]
[1727882161844,0.12502,146.21,146.13,6.48]
[1727882162045,0.12502,146.21,146.13,9.81925547]
[1727882162241,3.4205,146.19,146.16,3.4209]
[1727882162443,0.12502,146.21,146.13,9.92738179]
[1727882162845,0.12502,146.21,146.13,6.48]
[1727882164142,3.4205,146.19,146.16,3.4209]
[1727882164943,3.4206,146.18,146.15,3.4212]
[1727882165448,3.4205,146.19,146.16,3.4209]
[1727882166241,3.4201,146.2,146.17,3.4208]
[1727882167540,0.12502,146.21,146.13,6.48]
[1727882167954,3.54502,146.21,146.19,3.4203]
[1727882168145,0.12502,146.21,146.13,6.48]
[1727882168655,0.12502,146.21,146.2,3.4201]
[1727882169341,0.12502,146.21,146.17,6.48]
[1727882170146,0.12502,146.21,146.2,3.4201]
[1727882170947,0.12502,146.21,146.18,2.6404]
[1727882171544,0.12502,146.21,146.19,3.4203]
[1727882171744,0.12502,146.21,146.18,2.6404]
[1727882171745,0.12502,146.21,146.18,1.303]
[1727882172151,0.12502,146.21,146.19,3.4203]
[1727882172455,0.12502,146.21,146.18,1.303]
[1727882172654,3.54502,146.21,146.18,4.7234]
[1727882172955,0.12502,146.21,146.18,1.303]
[1727882174156,0.12502,146.21,146.2,3.4201]
[1727882174852,6.60502,146.27,146.23,3.4192]
[1727882175355,6.60502,146.27,146.19,9.1798]
[1727882175558,6.60502,146.27,146.21,3.4198]
[1727882175756,6.60502,146.27,146.18,1.303]
[1727882175957,6.60502,146.27,146.18,4.7234]
[1727882176261,6.60502,146.27,146.15,0.12502]
[1727882176458,3.4205,146.19,146.16,3.4209]
[1727882176853,3.4205,146.19,146.15,0.12502]
[1727882177057,6.48,146.22,146.15,0.12502]
[1727882177256,3.4202,146.2,146.17,3.4207]
[1727882177559,6.48,146.22,146.15,0.12502]
[1727882178358,3.4201,146.2,146.17,3.4206]
[1727882179768,6.48,146.22,146.15,0.12502]
[1727882180068,6.48,146.22,146.15,1.44842]
[1727882180356,6.48,146.22,146.17,3.4206]
[1727882180962,6.48,146.22,146.18,3.4204]
[1727882181461,3.4199,146.21,146.18,3.4204]
[1727882181657,6.48,146.22,146.18,3.4204]
[1727882182063,6.48,146.22,146.17,3.4207]
[1727882182367,6.48,146.22,146.15,1.44842]
[1727882182665,3.4201,146.2,146.18,3.4204]
[1727882182963,6.48,146.22,146.15,1.44842]
[1727882183367,6.48,146.22,146.18,3.4204]
[1727882183368,3.42,146.21,146.18,3.4204]
[1727882183663,6.48,146.26,146.15,1.44842]
[1727882183868,3.419,146.25,146.15,1.44842]
[1727882184364,6.48,146.26,146.15,1.44842]
[1727882184573,0.12502,146.27,146.15,1.44842]
[1727882184862,0.12502,146.27,146.16,1.25660313]
[1727882185065,0.12502,146.27,146.17,6.48]
[1727882185259,0.12502,146.27,146.26,3.4187]
[1727882185655,0.12518,146.28,146.23,6.48]
[1727882185855,0.12518,146.28,146.27,3.4185]
[1727882186661,0.12502,146.33,146.24,2.6404]
[1727882186967,3.4174,146.32,146.29,3.4179]
[1727882187171,0.12502,146.33,146.24,2.6404]
[1727882187966,0.12502,146.33,146.31,3.4173]
[1727882188162,0.12502,146.33,146.28,6.48]
[1727882188356,0.12502,146.33,146.24,2.6404]
[1727882188563,0.12502,146.33,146.28,3.4181]
[1727882188762,0.12502,146.33,146.26,6.48]
[1727882189167,3.4175,146.31,146.24,2.6404]
[1727882189468,0.12502,146.33,146.25,6.46]
[1727882189665,3.4176,146.31,146.26,3.4185]
[1727882189977,0.12502,146.33,146.25,6.46]
[1727882190270,3.4177,146.31,146.27,3.4184]
[1727882190574,0.12502,146.39,146.25,6.46]
[1727882190864,3.5286556,146.45,146.33,0.12502]
[1727882191063,0.12502,146.45,146.37,3.4161]
[1727882191264,0.12502,146.45,146.38,6.46]
[1727882191864,0.12502,146.45,146.4,3.4152]
[1727882192169,0.12502,146.45,146.39,1.3836]
[1727882192975,0.12502,146.45,146.42,3.4149]
[1727882193176,0.12502,146.45,146.39,1.3836]
[1727882193468,0.12502,146.45,146.4,3.4152]
[1727882193775,0.12502,146.45,146.39,1.3836]
[1727882194673,0.12502,146.45,146.41,3.4152]
[1727882195371,0.12502,146.45,146.39,1.3836]
[1727882195777,0.12502,146.45,146.41,3.4151]
[1727882196068,0.12502,146.45,146.4,2.7037]
[1727882197463,0.12502,146.45,146.39,1.3836]
[1727882197674,0.12502,146.45,146.36,1.3584]
[1727882197975,3.415,146.42,146.38,3.4157]
[1727882198180,0.12502,146.45,146.35,1.3066]
[1727882198376,1.3923,146.41,146.29,4.72895248]
[1727882198671,9.93777094,146.4,146.29,4.72895248]
[1727882198878,7.7415,146.43,146.31,6.46]
[1727882199082,3.4151,146.42,146.31,6.46]
[1727882199370,6.46,146.43,146.31,6.46]
[1727882199578,6.46,146.43,146.41,3.4152]
[1727882199775,0.12502,146.45,146.36,6.46]
[1727882200072,0.12502,146.45,146.37,3.9925]
[1727882200269,0.12502,146.45,146.37,7.39836145]
[1727882201165,227.12502,146.63,146.39,0.12502]
[1727882201365,3.39322311,146.56,146.4,13.318]
[1727882201777,6.80512311,146.56,146.5,3.4131]
[1727882202074,6.58502,146.57,146.5,3.4131]
[1727882202268,0.12502,146.57,146.5,3.4131]
[1727882202468,3.49179125,146.57,146.5,3.4131]
[1727882202876,3.4121,146.55,146.5,3.4131]
[1727882203173,3.49179125,146.57,146.5,3.4131]
[1727882203377,3.4119,146.56,146.5,3.4131]
[1727882203581,3.49179125,146.57,146.5,3.4131]
[1727882203976,3.4118,146.56,146.5,3.4131]
[1727882205479,3.4122,146.55,146.5,3.4131]
[1727882208686,3.49179125,146.57,146.5,3.4131]
[1727882208877,3.4118,146.56,146.5,3.4131]
[1727882209176,3.49179125,146.57,146.5,3.4131]
[1727882209383,3.412,146.55,146.5,3.4131]
[1727882209779,3.4118,146.56,146.5,3.4131]
[1727882209982,3.49179125,146.57,146.5,3.4131]
[1727882209983,0.12502,146.57,146.5,3.4131]
[1727882210571,3.52728484,146.57,146.5,3.4131]
[1727882211077,3.4118,146.56,146.5,3.4131]
[1727882211283,3.52728484,146.57,146.5,3.4131]
[1727882211884,3.4121,146.55,146.5,3.4131]
[1727882212480,3.4117,146.56,146.5,3.4129]
[1727882212782,0.12502,146.57,146.48,2.6321]
[1727882214184,3.4118,146.56,146.52,3.4124]
[1727882214376,3.4118,146.56,146.48,2.6321]
[1727882214779,3.53662,146.57,146.53,3.4123]
[1727882215182,0.12502,146.57,146.53,3.4123]
[1727882215678,0.12502,146.57,146.52,3.4125]
[1727882215679,3.4119,146.56,146.52,3.4125]
[1727882216681,3.4119,146.55,146.52,3.4125]
[1727882217079,0.12502,146.57,146.48,2.6321]
[1727882217282,3.4124,146.53,146.5,3.413]
[1727882217884,0.12502,146.57,146.5,3.413]
[1727882218080,3.4122,146.54,146.51,3.4128]
[1727882218585,0.12502,146.57,146.48,2.6321]
[1727882220380,0.12502,146.57,146.48,1.2913]
[1727882220685,0.12502,146.57,146.45,0.12502]
[1727882221283,1.0,146.56,146.45,0.12502]
[1727882221490,81.9186,146.55,146.45,0.12502]
[1727882221692,2.5647,146.54,146.45,0.12502]
[1727882221882,3.4137,146.48,146.45,3.53912]
[1727882222078,6.44,146.47,146.45,3.53912]
[1727882222283,3.44099972,146.49,146.45,0.12502]
[1727882222478,2.5647,146.54,146.45,0.12502]
[1727882222679,6.44,146.53,146.45,0.12502]
[1727882223185,3.413,146.51,146.48,3.4135]
[1727882223387,6.44,146.53,146.45,0.12502]
[1727882223596,3.4128,146.52,146.45,0.12502]
[1727882223889,6.44,146.52,146.45,0.12502]
[1727882224100,6.44,146.53,146.45,0.12502]
[1727882224286,6.44,146.54,146.51,3.4127]
[1727882224487,6.44,146.54,146.45,0.12502]
[1727882224797,6.44,146.54,146.46,4.63996611]
[1727882224798,9.8523,146.54,146.46,4.63996611]
[1727882225092,6.44,146.54,146.45,0.12502]
[1727882225293,3.413,146.51,146.48,3.4133]
[1727882225591,6.44,146.54,146.45,0.12502]
[1727882225793,3.4132,146.5,146.46,3.4139]
[1727882225986,6.44,146.5,146.46,3.4139]
[1727882226193,9.83840283,146.5,146.45,0.12502]
[1727882226380,3.4138,146.48,146.45,0.12502]
[1727882226581,9.83840283,146.5,146.45,0.12502]
[1727882227388,3.4146,146.44,146.38,1.284]
[1727882227587,9.83840283,146.5,146.38,1.284]
[1727882227588,6.44,146.45,146.38,1.284]
[1727882227791,6.44,146.44,146.38,1.284]
[1727882228189,3.4149,146.43,146.39,3.54052]
[1727882228391,6.44,146.44,146.39,0.12502]
[1727882228697,9.8546,146.44,146.4,3.4152]
[1727882228897,6.44,146.44,146.39,0.12502]
[1727882229392,0.12502,146.51,146.39,0.12502]
[1727882229593,6.44,146.5,146.39,0.12502]
[1727882229799,9.88307082,146.5,146.39,0.12502]
[1727882230604,3.4145,146.44,146.41,3.4152]
[1727882230792,3.4145,146.44,146.39,0.12502]
[1727882230993,6.44,146.45,146.39,0.12502]
[1727882231191,6.44,146.45,146.39,3.54062]
[1727882231393,6.44,146.45,146.39,0.12502]
[1727882231700,3.4148,146.43,146.4,3.4153]
[1727882232193,3.4149,146.43,146.4,3.4153]
[1727882232395,6.44,146.45,146.4,3.4153]
[1727882232593,6.44,146.46,146.39,0.12502]
[1727882232795,0.12502,146.51,146.39,6.56502]
[1727882232996,0.12502,146.51,146.39,13.42302]
[1727882233188,3.4132,146.5,146.47,3.4137]
[1727882233389,0.12502,146.51,146.39,13.42302]
[1727882233594,9.9164405,146.5,146.39,13.42302]
[1727882233790,6.44,146.5,146.39,6.56502]
[1727882233998,9.93249402,146.5,146.39,0.12502]
[1727882234896,9.93249402,146.5,146.4,3.4154]
[1727882235093,9.93249402,146.5,146.39,0.12502]
[1727882235293,3.4152,146.42,146.39,0.12502]
[1727882235493,6.44,146.41,146.39,0.12502]
[1727882236206,6.44,146.41,146.33,0.12502]
[1727882236502,3.4156,146.4,146.36,3.4162]
[1727882236704,6.44,146.4,146.33,0.12502]
[1727882237398,6.44,146.43,146.33,0.12502]
[1727882237701,6.56502,146.45,146.34,6.44]
[1727882237903,0.12502,146.45,146.35,1.28]
[1727882238097,0.12502,146.45,146.36,1.2967]
[1727882238707,3.4145,146.44,146.4,3.4153]
[1727882239093,0.12502,146.45,146.38,9.93259702]
[1727882239299,0.12502,146.45,146.39,8.11277149]
[1727882239603,0.12502,146.51,146.48,3.4135]
[1727882239794,0.12502,146.51,146.44,6.44]
[1727882240002,0.12502,146.51,146.45,1.3436]
[1727882241600,0.12502,146.51,146.5,3.4131]
[1727882243308,0.12502,146.51,146.45,7.7836]
[1727882244213,0.12502,146.51,146.45,1.3436]
[1727882245103,0.12502,146.51,146.48,3.4134]
[1727882245304,0.12502,146.51,146.45,1.3436]
[1727882246412,0.12502,146.51,146.41,9.0808]
[1727882247315,3.53792,146.51,146.44,3.4145]
[1727882247515,0.12502,146.51,146.41,9.0808]
[1727882247903,0.12502,146.51,146.43,3.4146]
[1727882248510,0.12502,146.51,146.4,1.3339]
[1727882248711,0.12502,146.51,146.36,6.44]
[1727882248912,0.12502,146.51,146.36,7.7739]
[1727882250211,9.84251228,146.5,146.38,3.36257509]
[1727882250415,3.40251228,146.5,146.38,3.36257509]
[1727882250624,0.12502,146.51,146.4,6.44]
[1727882250822,0.12502,146.51,146.48,3.4134]
[1727882251021,0.12502,146.51,146.42,2.6881]
[1727882251217,0.12502,146.51,146.5,3.4131]
[1727882256726,0.12502,146.57,146.56,3.4117]
[1727882258828,0.12502,146.57,146.55,3.4118]
[1727882259132,0.12502,146.57,146.52,6.44]
[1727882259332,0.12502,146.57,146.55,3.4118]
[1727882259827,0.12502,146.57,146.52,6.44]
[1727882260022,0.12502,146.57,146.56,3.4117]
[1727882262933,0.12502,146.57,146.49,4.0967]
[1727882263133,3.53652,146.57,146.53,3.4122]
[1727882263327,0.12502,146.57,146.5,6.44]
[1727882263644,0.12502,146.57,146.49,4.0967]
[1727882264438,3.4118,146.56,146.49,4.0967]
[1727882264734,3.4119,146.55,146.51,3.4127]
[1727882265035,3.4119,146.55,146.49,4.0967]
[1727882265233,3.4118,146.56,146.52,3.4125]
[1727882266237,0.12502,146.57,146.49,4.0967]
[1727882266641,3.4118,146.56,146.49,4.0967]
[1727882266935,0.12502,146.57,146.49,4.0967]
[1727882267339,0.12502,146.57,146.54,3.4121]
[1727882267533,0.12502,146.57,146.49,4.0967]
[1727882268037,3.53662,146.57,146.49,4.0967]
[1727882268435,0.12502,146.57,146.49,4.0967]
[1727882269231,0.12502,146.57,146.56,3.4117]
[1727882274048,3.53662,146.57,146.54,3.4121]
[1727882274343,0.12502,146.57,146.54,3.4121]
[1727882274543,0.12502,146.57,146.52,3.4126]
[1727882274732,0.12502,146.57,146.5,6.44]
[1727882275131,0.12502,146.57,146.52,3.4126]
[1727882275342,0.12502,146.57,146.5,6.44]
[1727882276342,0.12502,146.57,146.55,3.4119]
[1727882278646,0.12502,146.57,146.56,3.4117]
[1727882282348,0.12502,146.63,146.62,3.4103]
[1727882285247,0.12502,146.63,146.61,3.4104]
[1727882285655,0.12502,146.63,146.58,6.42]
[1727882286047,0.12502,146.63,146.6,3.4106]
[1727882286252,0.12502,146.63,146.58,6.42]
[1727882286555,0.12502,146.63,146.61,3.4103]
[1727882287052,0.12502,146.63,146.62,3.4103]
[1727882289848,0.12502,146.63,146.61,3.4105]
[1727882291346,0.12502,146.63,146.58,6.42]
[1727882292040,9.95382,146.69,146.61,3.4105]
[1727882292351,3.409,146.68,146.58,6.42]
[1727882292552,10.00942315,146.69,146.58,6.42]
[1727882292858,6.54502,146.69,146.58,6.42]
[1727882293156,0.12502,146.69,146.58,6.42]
[1727882293348,0.12502,146.69,146.68,3.4089]
[1727882294149,0.12502,146.69,146.63,6.42]
[1727882295364,3.53392,146.69,146.63,6.42]
[1727882295656,0.12502,146.69,146.63,6.42]
[1727882295953,3.4091,146.68,146.63,6.42]
[1727882296252,0.12502,146.69,146.6,6.42]
[1727882296452,0.12502,146.69,146.65,3.4096]
[1727882296657,3.53382,146.69,146.6,6.42]
[1727882296849,3.53382,146.69,146.65,3.4095]
[1727882297144,0.12502,146.69,146.6,6.42]
[1727882297347,0.12502,146.69,146.61,1.2772]
[1727882298151,0.12502,146.69,146.62,1.3817]
[1727882298550,3.53372,146.69,146.62,1.3817]
[1727882298959,3.53372,146.69,146.64,3.4098]
[1727882299259,0.12502,146.69,146.62,1.3817]
[1727882299758,3.409,146.68,146.64,3.4096]
[1727882299950,3.58973738,146.69,146.61,1.2772]
[1727882300150,6.54502,146.69,146.61,1.2772]
[1727882300456,9.93642627,146.69,146.5,6.826]
[1727882300659,2.7356,146.68,146.56,6.42]
[1727882300958,3.4099,146.64,146.6,3.4106]
[1727882301258,6.42,146.65,146.56,6.42]
[1727882301658,3.4102,146.63,146.59,3.4109]
[1727882302060,6.42,146.65,146.59,3.4109]
[1727882302561,6.42,146.65,146.58,3.4111]
[1727882302853,3.409,146.68,146.59,6.42]
[1727882303054,0.12502,146.69,146.6,1.3845]
[1727882303254,0.12502,146.69,146.61,1.3131]
[1727882305263,0.12502,146.69,146.63,3.41]
[1727882305453,0.12502,146.69,146.61,1.3131]
[1727882305857,0.12502,146.69,146.66,3.4092]
[1727882306158,0.12502,146.69,146.61,1.3131]
[1727882306562,0.12502,146.69,146.68,3.4089]
[1727882307655,0.12502,146.69,146.63,6.42]
[1727882308364,0.12502,146.69,146.67,3.409]
[1727882309451,0.12502,146.69,146.63,6.42]
[1727882309452,0.12502,146.69,146.68,3.4089]
[1727882313169,0.12502,146.75,146.73,3.4076]
[1727882313564,0.12502,146.75,146.68,1.3628]
[1727882314075,0.12502,146.75,146.74,3.4075]
[1727882315276,0.12502,146.75,146.73,3.4077]
[1727882315472,0.12502,146.75,146.68,7.7828]
[1727882315676,0.12502,146.75,146.7,3.4084]
[1727882316172,0.12502,146.75,146.68,1.3628]
[1727882316766,0.12502,146.75,146.7,3.4084]
[1727882316969,0.12502,146.75,146.68,1.3628]
[1727882317473,0.12502,146.75,146.74,3.4075]
[1727882319770,0.12518,146.76,146.75,3.4073]
[1727882324087,0.12518,146.76,146.74,3.4074]
[1727882324383,0.12518,146.76,146.7,7.7465]
[1727882324584,0.12518,146.76,146.74,3.4073]
[1727882324785,0.12518,146.76,146.7,7.7465]
[1727882325180,0.12518,146.76,146.75,3.4073]
[1727882325778,0.12518,146.76,146.7,7.7465]
[1727882325981,0.12518,146.76,146.74,3.4073]
[1727882326180,0.12518,146.76,146.7,7.7465]
[1727882327188,3.4074,146.75,146.72,3.408]
[1727882327383,3.4074,146.75,146.69,0.12502]
[1727882327990,3.4075,146.74,146.7,3.4082]
[1727882328285,0.12518,146.76,146.69,0.12502]
[1727882329375,0.12518,146.76,146.75,3.4073]
[1727882330790,0.12518,146.76,146.71,2.6602]
[1727882330983,0.12518,146.76,146.71,9.0602]
[1727882331390,0.12518,146.76,146.74,3.4074]
[1727882331690,0.12518,146.76,146.71,9.0602]
[1727882331989,3.53238,146.76,146.72,3.4078]
[1727882332292,0.12518,146.76,146.69,6.52502]
[1727882332682,0.12518,146.76,146.73,3.4077]
[1727882332881,3.53228,146.76,146.73,3.4077]
[1727882333490,0.12518,146.76,146.69,6.52502]
[1727882334089,0.12518,146.76,146.74,3.4075]
[1727882334298,0.12518,146.76,146.69,6.52502]
[1727882334894,0.12518,146.76,146.75,3.4073]
[1727882336595,0.12518,146.76,146.74,3.4074]
[1727882337290,0.12502,146.81,146.74,6.4]
[1727882337491,0.12502,146.81,146.8,3.4061]
[1727882340596,0.12502,146.81,146.75,7.6644]
[1727882340897,0.12502,146.81,146.75,1.2644]
[1727882341098,0.12502,146.81,146.8,3.4061]
[1727882341487,0.12502,146.87,146.78,6.4]
[1727882341693,0.12502,146.87,146.86,3.4047]
[1727882341897,0.12502,146.93,146.84,6.4]
[1727882342496,0.12502,146.93,146.85,1.2656]
[1727882342903,0.12502,146.93,146.89,3.4039]
[1727882343093,0.12502,146.93,146.85,1.2656]
[1727882343401,3.52812,146.93,146.88,3.4041]
[1727882343798,0.12502,146.93,146.87,3.4044]
[1727882344102,0.12502,146.93,146.85,1.2656]
[1727882344405,0.12502,146.93,146.88,3.4042]
[1727882345005,0.12502,146.93,146.89,3.404]
[1727882345199,0.12502,146.93,146.85,1.2656]
[1727882345505,3.52812,146.93,146.88,3.4041]
[1727882345811,0.12518,146.95,146.87,0.12502]
[1727882346108,0.12518,146.95,146.88,6.4]
[1727882346699,0.12518,146.95,146.9,3.4036]
[1727882346903,0.12518,146.95,146.89,1.3483]
[1727882347702,0.12518,146.95,146.93,3.403]
[1727882347895,0.12518,146.95,146.91,6.4]
[1727882348697,0.12518,146.95,146.94,3.4029]
[1727882349104,0.12518,146.95,146.91,6.4]
[1727882349497,0.12502,146.99,146.91,6.4]
[1727882349694,0.12502,146.99,146.98,3.4019]
[1727882350515,3.8046404,147.04,147.0,3.4014]
[1727882351099,3.4009,147.03,146.98,3.4017]
[1727882351309,0.4040404,147.04,146.98,3.4017]
[1727882351501,0.4040404,147.04,146.96,6.4]
[1727882351795,3.4011,147.02,146.97,3.402]
[1727882351995,3.4011,147.02,146.96,6.4]
[1727882352397,3.4008,147.03,146.96,6.4]
[1727882352602,0.4040404,147.04,146.96,6.4]
[1727882353604,3.8047404,147.04,146.99,3.4016]
[1727882353908,3.8047404,147.04,146.93,0.12502]
[1727882353909,3.8047404,147.04,147.0,6.4]
[1727882354209,3.401,147.03,147.0,6.4]
[1727882354796,0.4040404,147.04,147.0,6.4]
[1727882356004,0.4040404,147.04,147.0,7.7175]
[1727882356204,0.4040404,147.04,147.0,9.0867]
[1727882356509,0.4040404,147.04,147.0,2.6867]
[1727882356810,3.4008,147.03,147.0,7.7692]
[1727882357003,0.4040404,147.04,147.0,7.7692]
[1727882357404,3.8047404,147.04,147.0,7.7692]
[1727882357800,3.8038404,147.08,147.03,3.4007]
[1727882358003,3.8038404,147.08,147.04,6.4]
[1727882358506,3.8038404,147.08,147.04,9.8005]
[1727882358707,0.4040404,147.08,147.04,6.4]
[1727882359411,0.4040404,147.08,147.0,1.3692]
[1727882360000,0.4040404,147.08,147.01,6.4]
[1727882360402,3.3999,147.07,147.01,6.4]
[1727882361013,3.3999,147.07,147.03,3.4006]
[1727882361202,0.4040404,147.08,147.01,6.4]
[1727882361603,0.4040404,147.08,147.04,3.4004]
[1727882361801,0.4040404,147.08,147.02,1.3039]
[1727882362007,0.4040404,147.08,147.05,3.4002]
[1727882362207,0.4040404,147.08,147.05,6.4]
[1727882362408,0.4040404,147.08,147.06,1.3186]
[1727882362805,0.4040404,147.08,147.07,1.3799]
[1727882363609,0.12502,147.11,147.07,1.3799]
[1727882364003,0.12502,147.11,147.09,3.3993]
[1727882364214,0.4040404,147.16,147.1,6.38]
[1727882364604,0.4040404,147.16,147.08,80.40924649]
[1727882364809,0.4040404,147.16,147.09,6.38]
[1727882365016,0.4040404,147.16,147.08,83.79435723]
[1727882365207,0.4040404,147.16,147.09,6.38]
[1727882365407,0.4040404,147.16,147.1,1.3307]
[1727882365804,0.4040404,147.16,147.11,6.38]
[1727882366013,0.4040404,147.16,147.12,6.38]
[1727882366211,3.3982,147.15,147.11,6.38]
[1727882366414,0.4040404,147.16,147.11,6.38]
[1727882367716,0.4040404,147.16,147.08,80.40924649]
[1727882367717,0.4040404,147.16,147.08,86.78924649]
[1727882367911,1.7495404,147.16,147.08,86.78924649]
[1727882368319,3.3982,147.15,147.11,3.3988]
[1727882368512,1.7495404,147.16,147.08,86.78924649]
[1727882368914,3.3986,147.13,147.09,3.3994]
[1727882369223,1.7495404,147.16,147.08,86.78924649]
[1727882369615,1.7495404,147.16,147.08,6.38]